fUST/lending_fUST_20241016
["ID","MTS","AMOUNT","RATE_DAILY","PERIOD"]
[340299659,1729009852896,-218.296649,0.00029018,7]
[340299660,1729009852905,-218.296649,0.00029018,7]
[340299661,1729009852914,-218.296649,0.00029018,7]
[340299662,1729009852923,-218.296649,0.00029018,7]
[340299663,1729009852932,-151.0,0.00029018,3]
[340299664,1729009852943,-151.0,0.00029018,3]
[340299665,1729009852952,-187.610453,0.00029018,7]
[340299666,1729009852962,-187.610453,0.00029018,7]
[340299667,1729009852972,-187.610453,0.00029018,7]
[340299668,1729009852981,-187.610453,0.00029018,7]
[340299669,1729009852991,-151.0,0.00029018,7]
[340299670,1729009853001,-3145.416485,0.00029018,7]
[340299671,1729009853011,-3145.416485,0.00029018,7]
[340299672,1729009853022,-3145.416485,0.00029018,7]
[340299673,1729009853031,-3145.416485,0.00029018,7]
[340299674,1729009853042,-769.111802,0.00029018,7]
[340299675,1729009853051,-769.111802,0.00029018,7]
[340299676,1729009853062,-769.111802,0.00029018,7]
[340299677,1729009853071,-769.111802,0.00029018,7]
[340299678,1729009853081,-327.267807,0.00029018,7]
[340299679,1729009853095,-327.267807,0.00029018,7]
[340299680,1729009853105,-327.267807,0.00029018,7]
[340299681,1729009853118,-327.267807,0.00029018,7]
[340299682,1729009853128,-151.0,0.00029018,7]
[340299683,1729009853139,-151.0,0.00029018,7]
[340299684,1729009853148,-674.608576,0.00029018,7]
[340299685,1729009853159,-674.608576,0.00029018,7]
[340299686,1729009853169,-697.089102,0.00029018,7]
[340299687,1729009853179,-674.608576,0.00029018,7]
[340299688,1729009853190,-674.608576,0.00029018,7]
[340299689,1729009853200,-697.089096,0.00029018,7]
[340299690,1729009853210,-151.0,0.00029019,7]
[340299691,1729009853219,-181.304124,0.00029019,7]
[340299692,1729009853228,-334.927201,0.00029019,7]
[340299693,1729009853237,-334.927201,0.00029019,7]
[340299694,1729009853247,-151.0,0.00029019,7]
[340299695,1729009853257,-151.0,0.00029019,7]
[340299696,1729009853266,-151.0,0.00029019,7]
[340299697,1729009853276,-360.515677,0.00029019,7]
[340299698,1729009853285,-360.515677,0.00029019,7]
[340299699,1729009853295,-151.0,0.00029019,7]
[340299700,1729009853305,-151.0,0.00029019,7]
[340299701,1729009853315,-526.104729,0.00029019,7]
[340299702,1729009853325,-526.104729,0.00029019,7]
[340299703,1729009853335,-297.87782,0.00029019,7]
[340299704,1729009853348,-297.87782,0.00029019,7]
[340299705,1729009853358,-2107.876471,0.00029019,7]
[340299706,1729009853368,-1249.581355,0.00029019,7]
[340299707,1729009853377,-2107.876471,0.00029019,7]
[340299708,1729009853387,-1249.581355,0.00029019,7]
[340299709,1729009853398,-601.864744,0.00029019,7]
[340299710,1729009853408,-601.864744,0.00029019,7]
[340299711,1729009853417,-2760.074245,0.00029019,7]
[340299712,1729009853426,-2760.074245,0.00029019,7]
[340299713,1729009853437,-279.72441,0.00029019,7]
[340299714,1729009853447,-279.72441,0.00029019,7]
[340299715,1729009853457,-279.72441,0.00029019,7]
[340299716,1729009853476,-279.72441,0.00029019,7]
[340299717,1729009853488,-503.272938,0.00029019,7]
[340299718,1729009853498,-503.272938,0.00029019,7]
[340299719,1729009853509,-2042.32632,0.00029019,7]
[340299720,1729009853519,-177.450328,0.00029019,7]
[340299721,1729009853530,-177.450328,0.00029019,7]
[340299722,1729009853540,-177.450328,0.00029019,7]
[340299723,1729009853550,-177.450328,0.00029019,7]
[340299724,1729009853560,-151.0,0.00029019,7]
[340299725,1729009853570,-151.0,0.00029019,7]
[340299726,1729009853579,-2027.716214,0.00029019,7]
[340299727,1729009853589,-151.0,0.00029019,7]
[340299728,1729009853605,-151.0,0.00029019,7]
[340299729,1729009853739,-1608.210629,0.00029019,7]
[340299730,1729009853748,-1608.210629,0.00029019,7]
[340299731,1729009853758,-2027.716214,0.00029019,7]
[340299732,1729009853767,-1608.210629,0.00029019,7]
[340299733,1729009853777,-1608.210629,0.00029019,7]
[340299734,1729009853786,-2285.202816,0.00029019,7]
[340299735,1729009853797,-2285.202816,0.00029019,7]
[340299736,1729009853807,-2285.202816,0.00029019,7]
[340299737,1729009853817,-2285.202816,0.00029019,7]
[340299738,1729009853827,-151.0,0.00029019,7]
[340299739,1729009853836,-151.0,0.00029019,7]
[340299740,1729009853849,-2458.926106,0.00029019,7]
[340299741,1729009853859,-2458.926106,0.00029019,7]
[340299742,1729009853868,-2458.926106,0.00029019,7]
[340299743,1729009853878,-2458.926106,0.00029019,7]
[340299744,1729009853887,-385.508593,0.00029019,7]
[340299745,1729009853897,-385.508593,0.00029019,7]
[340299746,1729009853906,-385.508593,0.00029019,7]
[340299747,1729009853915,-385.508593,0.00029019,7]
[340299748,1729009853924,-1398.491753,0.00029019,7]
[340299749,1729009853934,-1398.491753,0.00029019,7]
[340299750,1729009853943,-166.453614,0.00029019,7]
[340299751,1729009853952,-151.0,0.00029019,7]
[340299752,1729009853962,-166.453614,0.00029019,7]
[340299753,1729009853972,-166.453614,0.00029019,7]
[340299754,1729009853982,-166.453614,0.00029019,7]
[340299755,1729009853991,-218.296649,0.00029019,7]
[340299756,1729009854000,-218.296642,0.00029019,7]
[340299757,1729009854010,-151.0,0.00029019,3]
[340299758,1729009854020,-287.417329,0.00029019,3]
[340299759,1729009854029,-187.610453,0.00029019,7]
[340299760,1729009854038,-187.610445,0.00029019,7]
[340299761,1729009854048,-3145.416485,0.00029019,7]
[340299762,1729009854057,-3145.416485,0.00029019,7]
[340299763,1729009854067,-3145.416485,0.00029019,7]
[340299764,1729009854078,-3145.416485,0.00029019,7]
[340299765,1729009854087,-769.111802,0.00029019,7]
[340299766,1729009854099,-769.111798,0.00029019,7]
[340299767,1729009854110,-327.267807,0.00029019,7]
[340299768,1729009854123,-327.267807,0.00029019,7]
[340299769,1729009854133,-327.267807,0.00029019,7]
[340299770,1729009854142,-327.267807,0.00029019,7]
[340299771,1729009854151,-151.0,0.00029019,7]
[340299772,1729009854162,-674.608576,0.00029019,7]
[340299773,1729009854172,-674.608573,0.00029019,7]
[340299774,1729009854182,-183.966733,0.00029028,7]
[340299775,1729009854192,-183.966733,0.00029028,7]
[340299776,1729009854202,-151.0,0.00029028,7]
[340299777,1729009854211,-151.0,0.00029028,7]
[340299778,1729009854220,-151.0,0.00029028,7]
[340299779,1729009854229,-151.0,0.00029028,7]
[340299780,1729009854238,-230.04474031,0.00029028,7]
[340299781,1729009854247,-187.535718,0.00029028,7]
[340299782,1729009854256,-187.535718,0.00029028,7]
[340299783,1729009854265,-172.094316,0.00029028,7]
[340299784,1729009854274,-172.094316,0.00029028,7]
[340299785,1729009854283,-151.0,0.00029028,7]
[340299786,1729009854293,-230.465031,0.00029028,7]
[340299787,1729009854302,-230.465031,0.00029028,7]
[340299788,1729009854312,-151.0,0.00029028,7]
[340299789,1729009854321,-151.94065,0.00029028,7]
[340299790,1729009854330,-2107.876471,0.00029028,7]
[340299791,1729009854341,-1249.581355,0.00029028,7]
[340299792,1729009854352,-2107.876471,0.00029028,7]
[340299793,1729009854362,-1249.581355,0.00029028,7]
[340299794,1729009854372,-151.0,0.00029028,7]
[340299795,1729009854382,-1608.210629,0.00029028,7]
[340299796,1729009854393,-1608.210635,0.00029028,7]
[340299797,1729009854403,-2285.202816,0.00029028,7]
[340299798,1729009854413,-2285.20282186,0.00029028,7]
[340299799,1729009854422,-151.0,0.00029028,7]
[340299800,1729009854432,-166.453614,0.00029028,7]
[340299801,1729009854442,-166.453607,0.00029028,7]
[340299802,1729009854451,-183.966733,0.00029029,7]
[340299803,1729009854461,-183.966733,0.00029029,7]
[340299804,1729009854472,-183.966733,0.00029029,7]
[340299805,1729009854482,-183.966733,0.00029029,7]
[340299806,1729009854492,-151.0,0.00029029,7]
[340299807,1729009854501,-151.0,0.00029029,7]
[340299808,1729009854511,-151.0,0.00029029,7]
[340299809,1729009854520,-151.0,0.00029029,7]
[340299810,1729009854530,-562.487694,0.00029029,7]
[340299811,1729009854540,-562.487694,0.00029029,7]
[340299812,1729009854550,-151.0,0.00029029,7]
[340299813,1729009854560,-201.909067,0.00029029,7]
[340299814,1729009854570,-430.041762,0.00029029,7]
[340299815,1729009854579,-430.041762,0.00029029,7]
[340299816,1729009854589,-187.535718,0.00029029,7]
[340299817,1729009854600,-187.535718,0.00029029,7]
[340299818,1729009854610,-172.094316,0.00029029,7]
[340299819,1729009854619,-172.094316,0.00029029,7]
[340299820,1729009854628,-334.927201,0.00029029,7]
[340299821,1729009854637,-334.927201,0.00029029,7]
[340299822,1729009854647,-151.0,0.00029029,7]
[340299823,1729009854657,-151.0,0.00029029,7]
[340299824,1729009854667,-151.0,0.00029029,7]
[340299825,1729009854676,-151.0,0.00029029,7]
[340299826,1729009854686,-360.515677,0.00029029,7]
[340299827,1729009854695,-360.515677,0.00029029,7]
[340299828,1729009854705,-230.465031,0.00029029,7]
[340299829,1729009854714,-230.465031,0.00029029,7]
[340299830,1729009854725,-151.0,0.00029029,7]
[340299831,1729009854734,-194.208668,0.00029029,7]
[340299832,1729009854744,-151.0,0.00029029,7]
[340299833,1729009854753,-526.104729,0.00029029,7]
[340299834,1729009854762,-526.104729,0.00029029,7]
[340299835,1729009854771,-297.87782,0.00029029,7]
[340299836,1729009854780,-297.87782,0.00029029,7]
[340299837,1729009854789,-2107.876471,0.00029029,7]
[340299838,1729009854799,-1249.581355,0.00029029,7]
[340299839,1729009854808,-2107.876471,0.00029029,7]
[340299840,1729009854817,-1249.581355,0.00029029,7]
[340299841,1729009854825,-601.864744,0.00029029,7]
[340299842,1729009854834,-601.864744,0.00029029,7]
[340299843,1729009854844,-2760.074245,0.00029029,7]
[340299844,1729009854854,-2760.074245,0.00029029,7]
[340299845,1729009854864,-279.72441,0.00029029,7]
[340299846,1729009854873,-279.724407,0.00029029,7]
[340299847,1729009854883,-503.272929,0.00029029,7]
[340299848,1729009854893,-2042.32632,0.00029029,7]
[340299849,1729009854902,-177.450328,0.00029029,7]
[340299850,1729009854911,-177.450325,0.00029029,7]
[340299851,1729009854921,-151.0,0.00029029,7]
[340299852,1729009854931,-2027.716214,0.00029029,7]
[340299853,1729009854940,-2027.716214,0.00029029,7]
[340299854,1729009854949,-2458.926106,0.00029029,7]
[340299855,1729009854959,-2458.926103,0.00029029,7]
[340299856,1729009854969,-385.508593,0.00029029,7]
[340299857,1729009854978,-385.508594,0.00029029,7]
[340299858,1729009854988,-3145.416485,0.00029029,7]
[340299859,1729009854997,-3145.416494,0.00029029,7]
[340299860,1729009855083,-327.267807,0.00029029,7]
[340299861,1729009855093,-327.267804,0.00029029,7]
[340299862,1729009855102,-500.0,0.00029073,5]
[340299863,1729009855111,-500.0,0.00029073,5]
[340299864,1729009855125,-502.5672777,0.00029073,5]
[340299865,1729009855134,-500.0,0.00029073,5]
[340299866,1729009855144,-150.0,0.00029073,5]
[340299867,1729009855154,-181.304124,0.00029087,7]
[340299868,1729009855165,-601.864744,0.00029088,7]
[340299869,1729009855174,-601.864739,0.00029088,7]
[340299870,1729009855184,-2042.326319,0.00029088,7]
[340299871,1729009855194,-2027.716214,0.00029088,7]
[340299872,1729009855204,-2027.716211,0.00029088,7]
[340299873,1729009855213,-562.487694,0.00029098,7]
[340299874,1729009855224,-562.487694,0.00029098,7]
[340299875,1729009855233,-151.0,0.00029098,7]
[340299876,1729009855243,-334.927201,0.00029098,7]
[340299877,1729009855253,-334.927201,0.00029098,7]
[340299878,1729009855263,-151.0,0.00029098,7]
[340299879,1729009855272,-151.0,0.00029098,7]
[340299880,1729009855282,-151.0,0.00029098,7]
[340299881,1729009855292,-151.0,0.00029098,7]
[340299882,1729009855301,-360.515677,0.00029098,7]
[340299883,1729009855312,-360.515677,0.00029098,7]
[340299884,1729009855321,-230.465031,0.00029098,7]
[340299885,1729009855331,-230.465031,0.00029098,7]
[340299886,1729009855342,-151.0,0.00029098,7]
[340299887,1729009855353,-151.0,0.00029098,7]
[340299888,1729009855363,-526.104729,0.00029098,7]
[340299889,1729009855373,-526.104729,0.00029098,7]
[340299890,1729009855384,-297.87782,0.00029098,7]
[340299891,1729009855393,-297.87782,0.00029098,7]
[340299892,1729009855402,-2107.876471,0.00029098,7]
[340299893,1729009855413,-1249.581355,0.00029098,7]
[340299894,1729009855422,-2107.876471,0.00029098,7]
[340299895,1729009855432,-1249.581355,0.00029098,7]
[340299896,1729009855441,-2760.074245,0.00029098,7]
[340299897,1729009855451,-2760.074245,0.00029098,7]
[340299898,1729009855460,-151.0,0.00029099,7]
[340299899,1729009855471,-562.487694,0.00029099,7]
[340299900,1729009855481,-562.487694,0.00029099,7]
[340299901,1729009855491,-151.0,0.00029099,7]
[340299902,1729009855500,-181.304124,0.00029099,7]
[340299903,1729009855509,-181.304124,0.00029099,7]
[340299904,1729009855520,-187.535718,0.00029099,7]
[340299905,1729009855529,-187.535718,0.00029099,7]
[340299906,1729009855539,-172.094316,0.00029099,7]
[340299907,1729009855548,-172.094316,0.00029099,7]
[340299908,1729009855557,-191.963863,0.00029099,7]
[340299909,1729009855568,-151.0,0.00029099,7]
[340299910,1729009855578,-230.465031,0.00029099,7]
[340299911,1729009855588,-230.465031,0.00029099,7]
[340299912,1729009855601,-151.0,0.00029099,7]
[340299913,1729009855610,-295.670846,0.00029099,7]
[340299914,1729009855620,-526.104729,0.00029099,7]
[340299915,1729009855629,-526.104729,0.00029099,7]
[340299916,1729009855640,-297.87782,0.00029099,7]
[340299917,1729009855650,-297.87782,0.00029099,7]
[340299918,1729009855659,-2107.876471,0.00029099,7]
[340299919,1729009855669,-1249.581355,0.00029099,7]
[340299920,1729009855679,-2107.876471,0.00029099,7]
[340299921,1729009855689,-1249.581355,0.00029099,7]
[340299922,1729009855699,-2760.074245,0.00029099,7]
[340299923,1729009855709,-2760.074245,0.00029099,7]
[340299924,1729009855719,-151.0,0.000291,2]
[340299925,1729009855728,-207.8434821,0.000291,7]
[340299926,1729009855738,-150.112233,0.000291,7]
[340299927,1729009855749,-150.112233,0.000291,9]
[340299928,1729009855758,-150.112233,0.000291,5]
[340299929,1729009855768,-150.112233,0.000291,5]
[340299930,1729009855779,-150.112233,0.000291,6]
[340299931,1729009855789,-157.981906,0.000291,6]
[340299932,1729009855798,-183.966733,0.00029108,7]
[340299933,1729009855808,-183.966733,0.00029108,7]
[340299934,1729009855818,-151.0,0.00029108,7]
[340299935,1729009855828,-151.0,0.00029108,7]
[340299936,1729009855838,-284.508318,0.00029108,7]
[340299937,1729009855850,-151.0,0.00029108,7]
[340299938,1729009855860,-187.535718,0.00029108,7]
[340299939,1729009855870,-187.535718,0.00029108,7]
[340299940,1729009855879,-172.094316,0.00029108,7]
[340299941,1729009855889,-172.094316,0.00029108,7]
[340299942,1729009855899,-334.927201,0.00029108,7]
[340299943,1729009855908,-334.927201,0.00029108,7]
[340299944,1729009855918,-151.0,0.00029108,7]
[340299945,1729009855928,-219.228407,0.00029108,7]
[340299946,1729009855938,-151.0,0.00029108,7]
[340299947,1729009855947,-360.515677,0.00029108,7]
[340299948,1729009855956,-360.515677,0.00029108,7]
[340299949,1729009855966,-230.465031,0.00029108,7]
[340299950,1729009855975,-230.465031,0.00029108,7]
[340299951,1729009855984,-151.0,0.00029108,7]
[340299952,1729009855994,-526.104729,0.00029108,7]
[340299953,1729009856004,-526.104729,0.00029108,7]
[340299954,1729009856013,-297.87782,0.00029108,7]
[340299955,1729009856022,-297.87782,0.00029108,7]
[340299956,1729009856032,-2107.876471,0.00029108,7]
[340299957,1729009856041,-1249.581355,0.00029108,7]
[340299958,1729009856050,-2107.876474,0.00029108,7]
[340299959,1729009856060,-1249.581359,0.00029108,7]
[340299960,1729009856069,-2760.074245,0.00029108,7]
[340299961,1729009856078,-2760.074245,0.00029108,7]
[340299962,1729009856088,-151.0,0.00029109,7]
[340299963,1729009856099,-183.966733,0.00029109,7]
[340299964,1729009856109,-183.966733,0.00029109,7]
[340299965,1729009856123,-183.966733,0.00029109,7]
[340299966,1729009856133,-183.966733,0.00029109,7]
[340299967,1729009856142,-151.0,0.00029109,7]
[340299968,1729009856152,-151.0,0.00029109,7]
[340299969,1729009856163,-151.0,0.00029109,7]
[340299970,1729009856172,-151.0,0.00029109,7]
[340299971,1729009856181,-562.487694,0.00029109,7]
[340299972,1729009856193,-562.487694,0.00029109,7]
[340299973,1729009856202,-151.0,0.00029109,7]
[340299974,1729009856212,-151.0,0.00029109,7]
[340299975,1729009856221,-181.304124,0.00029109,7]
[340299976,1729009856231,-181.304124,0.00029109,7]
[340299977,1729009856241,-187.535718,0.00029109,7]
[340299978,1729009856250,-187.535718,0.00029109,7]
[340299979,1729009856260,-172.094316,0.00029109,7]
[340299980,1729009856269,-172.094316,0.00029109,7]
[340299981,1729009856279,-334.927201,0.00029109,7]
[340299982,1729009856366,-334.927201,0.00029109,7]
[340299983,1729009856375,-334.927201,0.00029109,7]
[340299984,1729009856386,-334.9272,0.00029109,7]
[340299985,1729009856395,-151.0,0.00029109,7]
[340299986,1729009856404,-151.0,0.00029109,7]
[340299987,1729009856414,-285.134889,0.00029109,7]
[340299988,1729009856423,-360.515677,0.00029109,7]
[340299989,1729009856433,-360.515677,0.00029109,7]
[340299990,1729009856442,-360.515677,0.00029109,7]
[340299991,1729009856451,-360.515671,0.00029109,7]
[340299992,1729009856460,-230.465031,0.00029109,7]
[340299993,1729009856470,-230.465025,0.00029109,7]
[340299994,1729009856479,-151.0,0.00029109,7]
[340299995,1729009856488,-526.104729,0.00029109,7]
[340299996,1729009856498,-526.10472,0.00029109,7]
[340299997,1729009856507,-297.87782,0.00029109,7]
[340299998,1729009856517,-297.877816,0.00029109,7]
[340299999,1729009856527,-2577.474954,0.00029109,7]
[340300000,1729009856537,-2760.074245,0.00029109,7]
[340300001,1729009856546,-2760.074248,0.00029109,7]
[340300002,1729009856556,-151.151633,0.00029118,7]
[340300003,1729009856566,-562.487694,0.00029118,7]
[340300004,1729009856575,-562.487694,0.00029118,7]
[340300005,1729009856585,-187.535718,0.00029118,7]
[340300006,1729009856595,-187.53571,0.00029118,7]
[340300007,1729009856605,-172.094316,0.00029118,7]
[340300008,1729009856615,-172.094318,0.00029118,7]
[340300009,1729009856627,-183.966733,0.00029119,7]
[340300010,1729009856636,-183.966733,0.00029119,7]
[340300011,1729009856647,-183.966733,0.00029119,7]
[340300012,1729009856657,-183.966733,0.00029119,7]
[340300013,1729009856667,-183.966733,0.00029119,7]
[340300014,1729009856676,-183.966733,0.00029119,7]
[340300015,1729009856685,-151.0,0.00029119,7]
[340300016,1729009856695,-151.0,0.00029119,7]
[340300017,1729009856709,-151.0,0.00029119,7]
[340300018,1729009856718,-151.0,0.00029119,7]
[340300019,1729009856728,-192.190465,0.00029119,7]
[340300020,1729009856738,-562.487694,0.00029119,7]
[340300021,1729009856748,-562.487697,0.00029119,7]
[340300022,1729009856758,-181.30413,0.00029119,7]
[340300023,1729009856767,-151.0,0.00029129,7]
[340300024,1729009856777,-183.966733,0.00029129,7]
[340300025,1729009856786,-183.966734,0.00029129,7]
[340300026,1729009856796,-151.0,0.00029129,7]
[340300027,1729009856805,-500.0,0.00029173,5]
[340300028,1729009856814,-500.0,0.00029173,5]
[340300029,1729009856823,-500.0,0.00029173,5]
[340300030,1729009856833,-1500.0,0.00029173,5]
[340300031,1729009856842,-1500.0,0.00029173,5]
[340300032,1729009856853,-1500.0,0.00029173,5]
[340300033,1729009856862,-1500.0,0.00029173,5]
[340300034,1729009856872,-1500.0,0.000292,2]
[340300035,1729009856881,-151.0,0.00029313,7]
[340300036,1729009856891,-159.0,0.0002934,120]
[340300037,1729009856900,-151.0,0.00029392,7]
[340300038,1729009856916,-177.814824,0.00029393,7]
[340300039,1729009856937,-177.814824,0.00029393,7]
[340300040,1729009856955,-177.814824,0.00029393,7]
[340300041,1729009856975,-177.814824,0.00029393,7]
[340300042,1729009856998,-177.814824,0.00029393,7]
[340300043,1729009857016,-177.814824,0.00029393,7]
[340300044,1729009857036,-151.0,0.00029393,7]
[340300045,1729009857051,-159.0,0.000294,2]
[340300046,1729009857069,-786.74558612,0.000294,7]
[340300047,1729009857088,-163.295,0.000294,22]
[340300048,1729009857109,-151.649973,0.00029402,7]
[340300049,1729009857128,-177.814824,0.00029403,7]
[340300050,1729009857146,-177.814824,0.00029403,7]
[340300051,1729009857166,-151.0,0.00029403,7]
[340300052,1729009857183,-177.814824,0.00029413,7]
[340300053,1729009857200,-177.814824,0.00029413,7]
[340300054,1729009857215,-177.814824,0.00029413,7]
[340300055,1729009857230,-177.814824,0.00029413,7]
[340300056,1729009857245,-177.814824,0.00029413,7]
[340300057,1729009857260,-177.814824,0.00029413,7]
[340300058,1729009857275,-151.0,0.00029413,7]
[340300059,1729009857291,-151.0,0.00029413,7]
[340300060,1729009857307,-177.814824,0.00029423,7]
[340300061,1729009857322,-177.814824,0.00029423,7]
[340300062,1729009857336,-177.814824,0.00029423,7]
[340300063,1729009857352,-177.814824,0.00029423,7]
[340300064,1729009857367,-285.16448,0.00029423,7]
[340300065,1729009857382,-1500.0,0.00029467,2]
[340300066,1729009857395,-177.814824,0.0002947,7]
[340300067,1729009857412,-177.814821,0.0002947,7]
[340300068,1729009857425,-150.5,0.0002947,120]
[340300069,1729009857440,-150.5,0.0002948,120]
[340300070,1729009857454,-150.5,0.0002949,120]
[340300071,1729009857468,-3000.0,0.000295,2]
[340300072,1729009857482,-3000.0,0.0002951,2]
[340300073,1729009857495,-3000.0,0.0002952,2]
[340300074,1729009857510,-3000.0,0.0002953,2]
[340300075,1729009857524,-3000.0,0.0002954,2]
[340300076,1729009857538,-3000.0,0.0002955,2]
[340300077,1729009857552,-3000.0,0.0002956,2]
[340300078,1729009857567,-500.0,0.00029567,11]
[340300079,1729009857581,-3000.0,0.0002957,2]
[340300080,1729009857597,-4368.227434,0.0002958,2]
[340300081,1729009857612,-250.0,0.00029621,5]
[340300082,1729009857626,-9825.52355801,0.00029697,2]
[340300083,1729009857641,-1500.0,0.00029733,2]
[340300084,1729009857655,-301.83,0.000298,14]
[340300085,1729009857669,-150.0,0.00029858,2]
[340300086,1729009857683,-500.0,0.00029858,2]
[340300087,1729009857697,-150.0,0.00029858,2]
[340300088,1729009857712,-2823.74,0.000299,30]
[340300089,1729009857726,-6097.37,0.000299,30]
[340300090,1729009857741,-13482.89,0.000299,14]
[340300091,1729009857755,-1000.0,0.0003,2]
[340300092,1729009857769,-1500.0,0.0003,2]
[340300093,1729009857877,-218.62801396,0.0003,2]
[340300094,1729009857902,-8918.17535682,0.0003,120]
[340300095,1729009857911,-253.0,0.0003,2]
[340300096,1729009857920,-1500.0,0.0003,2]
[340300097,1729009857929,-350.0,0.00030168,5]
[340300098,1729009857938,-587.0,0.00030204,2]
[340300099,1729009857947,-491.0,0.00030205,2]
[340300100,1729009857957,-200.0,0.00030262,2]
[340300101,1729009857966,-500.0,0.00030262,2]
[340300102,1729009857975,-1500.0,0.00030267,2]
[340300103,1729009857984,-193.63825774,0.00030342,5]
[340300104,1729009857993,-1000.0,0.00030342,5]
[340300105,1729009858002,-1000.0,0.00030342,5]
[340300106,1729009858011,-406.4672245,0.00030442,5]
[340300107,1729009858020,-1000.0,0.00030442,5]
[340300108,1729009858030,-1000.0,0.00030442,5]
[340300109,1729009858039,-1500.0,0.00030533,2]
[340300110,1729009858048,-502.72763105,0.00030542,5]
[340300111,1729009858058,-162.48376044,0.00030542,5]
[340300112,1729009858067,-1000.0,0.00030542,5]
[340300113,1729009858077,-187.05345242,0.0003065,2]
[340300114,1729009858086,-301.8354596,0.00030685,2]
[340300115,1729009858095,-450.0,0.00030716,5]
[340300116,1729009858104,-1500.0,0.000308,2]
[340300117,1729009858116,-442.1191536,0.00030951,2]
[340300118,1729009858126,-1000.0,0.00031,120]
[340300119,1729009858135,-11463.59584748,0.00031,120]
[340300120,1729009858145,-1500.0,0.00031067,2]
[340300121,1729009858154,-150.0,0.00031228,2]
[340300122,1729009858164,-500.0,0.00031228,2]
[340300123,1729009858173,-200.7034878,0.00031228,2]
[340300124,1729009858182,-550.0,0.00031264,5]
[340300125,1729009858192,-1500.0,0.00031333,2]
[340300126,1729009858201,-527.0,0.0003151,2]
[340300127,1729009858211,-1806.0,0.0003151,2]
[340300128,1729009858220,-1158.0,0.0003151,2]
[340300129,1729009858229,-2000.0,0.00031514,5]
[340300130,1729009858238,-2000.0,0.00031514,5]
[340300131,1729009858247,-2000.0,0.00031514,5]
[340300132,1729009858256,-1588.32085679,0.00031514,5]
[340300133,1729009858265,-1500.0,0.000316,2]
[340300134,1729009858274,-650.0,0.00031812,5]
[340300135,1729009858284,-1500.0,0.00031867,2]
[340300136,1729009858294,-1500.0,0.00032133,2]
[340300137,1729009858303,-301.83,0.000322,14]
[340300138,1729009858313,-484.0,0.00032219,2]
[340300139,1729009858322,-1500.0,0.00032346,5]
[340300140,1729009858333,-1500.0,0.00032346,5]
[340300141,1729009858342,-750.0,0.0003236,5]
[340300142,1729009858354,-1500.0,0.000324,2]
[340300143,1729009858363,-9825.52355801,0.00032402,2]
[340300144,1729009858372,-1500.0,0.00032446,5]
[340300145,1729009858381,-1500.0,0.00032446,5]
[340300146,1729009858390,-1504.26690632,0.00032546,5]
[340300147,1729009858400,-150.0,0.00032563,2]
[340300148,1729009858409,-159.59962882,0.00032598,2]
[340300149,1729009858419,-1500.0,0.00032667,2]
[340300150,1729009858428,-823.0,0.00032695,2]
[340300151,1729009858439,-2823.74,0.000328,30]
[340300152,1729009858448,-6097.37,0.000328,30]
[340300153,1729009858458,-13482.89,0.000328,14]
[340300154,1729009858467,-1000.0,0.00032876,2]
[340300155,1729009858477,-1000.0,0.00032876,2]
[340300156,1729009858486,-1000.0,0.00032876,2]
[340300157,1729009858496,-1000.0,0.00032876,2]
[340300158,1729009858506,-1000.0,0.00032876,2]